bitfinex/quotes_BTCUSD_20240918
["timestamp","ask_amount","ask_price","bid_price","bid_amount"]
[1726675036213,0.01906876,59585.0,59584.0,1.33836477]
[1726675036434,0.03645423,59585.0,59584.0,1.33836477]
[1726675037790,0.0364572,59585.0,59584.0,1.33836477]
[1726675039334,0.03647941,59585.0,59584.0,1.33836477]
[1726675040425,0.03647941,59585.0,59584.0,1.38867011]
[1726675041092,0.03647941,59585.0,59584.0,0.00764]
[1726675041543,0.04462097,59585.0,59584.0,0.00764]
[1726675042241,0.04362097,59585.0,59584.0,0.00164]
[1726675042470,0.02617124,59585.0,59584.0,0.00164]
[1726675042692,0.04360578,59585.0,59584.0,0.16947]
[1726675043117,0.04360578,59585.0,59584.0,0.50513]
[1726675043406,0.04360578,59585.0,59584.0,1.17645]
[1726675043623,0.03546422,59585.0,59584.0,1.17645]
[1726675045374,0.03646422,59585.0,59584.0,1.18245]
[1726675045585,0.03652184,59585.0,59584.0,1.18245]
[1726675048317,0.03652184,59585.0,59584.0,1.23275534]
[1726675048546,0.03652184,59585.0,59584.0,1.18245]
[1726675048975,0.01914694,59585.0,59584.0,1.18245]
[1726675049202,0.03558726,59585.0,59584.0,1.17645]
[1726675049420,0.03658726,59585.0,59584.0,1.18345]
[1726675049660,0.03658353,59585.0,59584.0,1.34650367]
[1726675049884,0.01905443,59585.0,59584.0,1.44499703]
[1726675050118,0.01905443,59585.0,59584.0,1.56846149]
[1726675050556,0.001621,59585.0,59584.0,1.56780367]
[1726675050785,0.001521,59585.0,59584.0,2.26489267]
[1726675051017,0.001521,59585.0,59584.0,1.93481067]
[1726675051238,0.001521,59585.0,59584.0,1.7187904]
[1726675051487,0.001521,59585.0,59584.0,1.57791951]
[1726675051915,0.001521,59585.0,59584.0,1.91357951]
[1726675056352,0.001521,59585.0,59584.0,2.27923951]
[1726675056565,0.001521,59585.0,59584.0,3.23055451]
[1726675056566,0.001421,59585.0,59584.0,3.23055451]
[1726675057202,0.001421,59585.0,59584.0,3.38154124]
[1726675057646,0.001421,59585.0,59584.0,3.23055451]
[1726675057863,0.001421,59585.0,59584.0,2.35504651]
[1726675058077,0.001421,59585.0,59584.0,2.21279151]
[1726675058757,0.000421,59585.0,59584.0,2.23942151]
[1726675059192,0.001421,59585.0,59584.0,2.58908151]
[1726675060075,0.000421,59585.0,59584.0,2.57508151]
[1726675060511,0.000421,59585.0,59584.0,2.58908151]
[1726675060743,0.000421,59585.0,59584.0,2.57508151]
[1726675061422,0.000421,59585.0,59584.0,1.90657951]
[1726675061861,0.000421,59585.0,59584.0,2.10672437]
[1726675062084,0.001421,59585.0,59584.0,2.13373551]
[1726675062312,0.001421,59585.0,59584.0,2.01411309]
[1726675062555,0.000421,59585.0,59584.0,1.87440951]
[1726675062787,0.001421,59585.0,59584.0,1.88840951]
[1726675063000,0.001421,59585.0,59584.0,2.00010363]
[1726675063442,0.002421,59585.0,59584.0,2.01110363]
[1726675063882,0.002421,59585.0,59584.0,1.88540951]
[1726675065442,0.002421,59585.0,59584.0,2.01112878]
[1726675065653,0.002421,59585.0,59584.0,1.91282878]
[1726675065857,0.000421,59585.0,59584.0,1.90182878]
[1726675066074,0.001421,59585.0,59584.0,1.91582878]
[1726675066511,0.001421,59585.0,59584.0,1.77610951]
[1726675066512,0.000421,59585.0,59584.0,1.77610951]
[1726675066738,0.001421,59585.0,59584.0,1.79010951]
[1726675067150,0.000421,59585.0,59584.0,1.77774951]
[1726675067382,0.001421,59585.0,59584.0,1.91746878]
[1726675067601,0.001421,59585.0,59584.0,1.36050767]
[1726675067844,0.001421,59585.0,59584.0,1.25992]
[1726675068946,0.000421,59585.0,59584.0,0.00164]
[1726675069174,0.20419082,59585.0,59584.0,0.01564]
[1726675069402,0.98606575,59585.0,59584.0,0.01564]
[1726675069633,1.48477342,59585.0,59584.0,0.01564]
[1726675069866,1.14911942,59585.0,59584.0,0.01564]
[1726675070083,1.14811942,59585.0,59584.0,0.00164]
[1726675070309,1.14811942,59585.0,59584.0,0.00664]
[1726675070750,1.14811942,59585.0,59584.0,0.00164]
[1726675071444,1.1306271,59585.0,59584.0,0.00164]
[1726675071696,1.13060342,59585.0,59584.0,0.00164]
[1726675071919,1.16548068,59585.0,59584.0,0.00164]
[1726675072152,1.6115848,59585.0,59584.0,0.00264]
[1726675072393,1.355469,59581.0,59580.0,0.00164]
[1726675072643,1.70731425,59581.0,59580.0,0.00164]
[1726675072865,1.71721852,59581.0,59580.0,0.00164]
[1726675073316,1.174929,59578.0,59577.0,0.00164]
[1726675073534,1.174929,59578.0,59564.0,0.00164]
[1726675073535,0.167883,59565.0,59564.0,0.00164]
[1726675073779,0.63362681,59565.0,59564.0,0.00164]
[1726675073985,0.64153108,59565.0,59564.0,0.00164]
[1726675074206,0.72113108,59565.0,59564.0,0.00164]
[1726675075316,1.05689808,59565.0,59564.0,0.00164]
[1726675075544,0.72113108,59565.0,59564.0,0.00164]
[1726675076004,0.72913108,59565.0,59564.0,0.00164]
[1726675077727,0.72925278,59565.0,59564.0,0.00164]
[1726675077946,0.22560278,59565.0,59564.0,0.00164]
[1726675078193,0.39348578,59565.0,59564.0,0.00164]
[1726675078416,0.13050278,59565.0,59564.0,0.00164]
[1726675078632,0.03333096,59565.0,59564.0,0.169526]
[1726675078856,0.03333096,59565.0,59564.0,0.505299]
[1726675079302,0.03333096,59565.0,59564.0,0.841072]
[1726675079303,0.01590427,59565.0,59564.0,0.841072]
[1726675079524,0.008,59565.0,59564.0,0.841072]
[1726675079959,0.008,59565.0,59564.0,0.505299]
[1726675080666,0.008,59565.0,59564.0,0.841072]
[1726675081975,0.0041967,59572.0,59564.0,0.00164]
[1726675082197,0.270083,59565.0,59564.0,0.00164]
[1726675082651,0.26968738,59565.0,59564.0,0.00164]
[1726675083110,0.60545438,59565.0,59564.0,0.00164]
[1726675083345,0.00760438,59565.0,59564.0,0.00164]
[1726675083572,0.01560438,59565.0,59564.0,0.169526]
[1726675083788,0.167876,59568.0,59564.0,0.169526]
[1726675084003,0.167876,59568.0,59564.0,0.00164]
[1726675084004,0.00755261,59565.0,59564.0,0.00164]
[1726675084226,0.335708,59576.0,59565.0,0.335767]
[1726675084455,0.245061,59573.0,59570.0,0.167868]
[1726675084668,0.0772,59573.0,59570.0,0.167868]
[1726675084884,0.245061,59573.0,59570.0,0.167868]
[1726675085109,0.245061,59573.0,59569.0,0.167871]
[1726675085316,0.0772,59573.0,59570.0,0.167868]
[1726675085749,0.0902,59573.0,59570.0,0.168868]
[1726675085995,0.245061,59573.0,59570.0,0.167868]
[1726675086244,0.0772,59573.0,59570.0,0.167868]
[1726675086524,0.0852,59573.0,59570.0,0.167868]
[1726675086949,0.0912,59573.0,59570.0,0.168868]
[1726675088237,0.0772,59573.0,59570.0,0.167868]
[1726675088457,0.0832,59573.0,59570.0,0.168868]
[1726675088694,0.0832,59573.0,59570.0,0.001]
[1726675088943,0.0772,59573.0,59569.0,0.167872]
[1726675089432,0.0832,59573.0,59570.0,0.168869]
[1726675089870,0.00758602,59572.0,59570.0,0.168869]
[1726675090084,0.00758602,59572.0,59565.0,0.335767]
[1726675090355,0.00758602,59572.0,59564.0,0.00164]
[1726675090356,0.167883,59565.0,59564.0,0.00164]
[1726675090568,1.175184,59565.0,59564.0,0.00164]
[1726675090788,1.45897763,59565.0,59564.0,0.00164]
[1726675091284,1.79674463,59565.0,59564.0,0.00164]
[1726675091549,1.87144463,59565.0,59564.0,0.00164]
[1726675091809,1.87344463,59565.0,59564.0,0.00164]
[1726675092065,1.88744463,59565.0,59564.0,0.00264]
[1726675092287,1.54967763,59565.0,59564.0,0.00264]
[1726675092511,1.53567763,59565.0,59564.0,0.00164]
[1726675092721,1.53552039,59565.0,59564.0,0.00164]
[1726675092943,1.53552039,59565.0,59564.0,0.00264]
[1726675092944,1.21375339,59565.0,59564.0,0.00264]
[1726675093906,0.87798639,59565.0,59564.0,0.00264]
[1726675094144,0.11578272,59565.0,59564.0,0.00264]
[1726675094374,0.03908272,59565.0,59564.0,0.170526]
[1726675094591,0.02508272,59565.0,59564.0,0.169526]
[1726675094806,0.167874,59569.0,59565.0,0.167883]
[1726675095022,0.167879,59567.0,59564.0,0.00164]
[1726675095227,0.0075228,59568.0,59565.0,0.167883]
[1726675095447,0.0075228,59568.0,59564.0,0.169525]
[1726675095448,0.0075228,59567.0,59564.0,0.169525]
[1726675095653,0.0075228,59567.0,59565.0,0.167883]
[1726675095874,0.167873,59569.0,59565.0,0.167883]
[1726675096085,0.16788,59567.0,59564.0,0.00164]
[1726675096311,0.167883,59565.0,59564.0,0.00164]
[1726675096535,0.0251186,59565.0,59564.0,0.00164]
[1726675097011,0.0251186,59565.0,59564.0,0.169526]
[1726675097472,0.0251186,59565.0,59564.0,0.00164]
[1726675097738,0.0251186,59565.0,59564.0,0.169526]
[1726675098255,0.0175958,59565.0,59564.0,0.169526]
[1726675098493,0.0175958,59565.0,59564.0,0.00164]
[1726675098709,0.0321186,59565.0,59564.0,0.505299]
[1726675098931,0.0245958,59565.0,59564.0,0.505299]
[1726675102327,0.1924788,59565.0,59564.0,0.00164]
[1726675102549,0.53572068,59565.0,59564.0,0.00164]
[1726675102788,0.53570288,59565.0,59564.0,0.00164]
[1726675103008,0.19993588,59565.0,59564.0,0.00164]
[1726675103227,0.03205288,59565.0,59564.0,0.00164]
[1726675103735,0.03205288,59565.0,59564.0,0.169526]
[1726675104816,0.03205288,59565.0,59564.0,0.841072]
[1726675105252,0.024578,59565.0,59564.0,1.176845]
[1726675106383,0.0245156,59565.0,59564.0,1.176845]
[1726675107282,0.0245156,59565.0,59564.0,1.199845]
[1726675107514,0.0245156,59565.0,59564.0,1.36289867]
[1726675107726,0.007,59565.0,59564.0,1.77607167]
[1726675107950,0.007,59565.0,59564.0,1.96657167]
[1726675108178,0.007,59565.0,59564.0,2.30234467]
[1726675108396,0.007,59565.0,59564.0,2.33234467]
[1726675108662,0.007,59565.0,59564.0,2.33434467]
[1726675111466,0.007,59565.0,59564.0,2.33234467]
[1726675112565,0.007,59565.0,59564.0,1.97672273]
[1726675112780,0.007,59565.0,59564.0,2.00672273]
[1726675112969,0.007,59565.0,59564.0,2.081955]
[1726675113762,0.007,59565.0,59564.0,2.00672273]
[1726675116024,0.007,59565.0,59564.0,1.45004973]
[1726675116250,0.007,59565.0,59564.0,1.276845]
[1726675116693,0.007,59565.0,59564.0,0.841072]
[1726675119302,0.007,59565.0,59564.0,1.176845]
[1726675119513,0.007,59565.0,59564.0,1.199845]
[1726675119719,0.007,59565.0,59564.0,1.46289867]
[1726675120185,0.0069,59565.0,59564.0,1.46289867]
[1726675120389,0.0069,59565.0,59564.0,1.56349173]
[1726675121043,0.0069,59565.0,59564.0,1.56346155]
[1726675121927,0.0068,59565.0,59564.0,1.56346155]
[1726675123502,0.0068,59565.0,59564.0,1.89923455]
[1726675124676,0.0068,59565.0,59564.0,1.97673455]
[1726675124926,0.0068,59565.0,59564.0,2.34250755]
[1726675125183,0.0068,59565.0,59564.0,1.96617167]
[1726675125398,0.0067,59565.0,59564.0,2.92516467]
[1726675125617,0.0067,59565.0,59564.0,2.40868867]
[1726675126514,0.0066,59565.0,59564.0,2.74446167]
[1726675126684,0.0066,59565.0,59564.0,2.41068867]
[1726675126886,0.0066,59565.0,59564.0,2.18007667]
[1726675127268,0.0066,59565.0,59564.0,2.07502367]
[1726675127933,0.0066,59565.0,59564.0,2.41079667]
[1726675130912,0.0066,59565.0,59564.0,1.96617167]
[1726675131126,0.0066,59565.0,59564.0,2.09171241]
[1726675131582,0.0066,59565.0,59564.0,3.33765641]
[1726675131796,0.0066,59565.0,59564.0,2.94904241]
[1726675132006,0.0066,59565.0,59564.0,2.42748541]
[1726675132664,0.0066,59565.0,59564.0,2.30194467]
[1726675133306,0.0066,59565.0,59564.0,2.33800478]
[1726675133491,0.0066,59565.0,59564.0,2.36310782]
[1726675133937,0.0066,59565.0,59564.0,2.69888082]
[1726675134156,0.0065,59565.0,59564.0,2.69888082]
[1726675135552,0.0065,59565.0,59564.0,2.76612782]
[1726675136001,0.0065,59565.0,59564.0,2.79123086]
[1726675136246,0.0065,59565.0,59564.0,2.30951395]
[1726675137809,0.0065,59565.0,59564.0,2.20912367]
[1726675138024,0.0065,59565.0,59564.0,2.54489667]
[1726675138236,0.0064,59565.0,59564.0,2.61041186]
[1726675138496,0.00082,59577.0,59576.0,0.503557]
[1726675138705,0.00082,59577.0,59576.0,1.68958677]
[1726675139151,0.00072,59577.0,59576.0,1.68958677]
[1726675140470,0.00072,59577.0,59576.0,1.85264044]
[1726675140689,0.01472,59577.0,59576.0,1.85264044]
[1726675142035,0.01472,59577.0,59576.0,1.86254172]
[1726675142698,0.01472,59577.0,59576.0,1.52683672]
[1726675142927,0.01472,59577.0,59576.0,1.174967]
[1726675143161,0.03235948,59577.0,59576.0,1.174967]
[1726675143383,0.14084176,59577.0,59576.0,0.503557]
[1726675143597,0.14084176,59577.0,59573.0,0.335722]
[1726675143598,0.14084176,59577.0,59574.0,0.335716]
[1726675143816,0.03532176,59576.0,59574.0,0.335716]
[1726675144030,0.00786815,59576.0,59575.0,0.167855]
[1726675144406,0.04321892,59576.0,59575.0,0.167855]
[1726675144612,0.04321892,59576.0,59575.0,0.503566]
[1726675145156,0.04321892,59576.0,59575.0,0.839277]
[1726675145367,0.03535077,59576.0,59575.0,0.839277]
[1726675145600,0.03535077,59576.0,59575.0,1.197988]
[1726675145814,0.014,59576.0,59575.0,1.197988]
[1726675146037,0.01771076,59576.0,59575.0,0.023]
[1726675146234,0.07947477,59584.0,59583.0,0.167833]
[1726675146460,0.07947477,59584.0,59580.0,0.167839]
[1726675146681,0.03951858,59583.0,59578.0,0.335691]
[1726675146896,0.37099451,59582.0,59575.0,0.001]
[1726675147101,0.37519792,59581.0,59575.0,0.001]
[1726675147290,0.20316451,59580.0,59565.0,0.05026326]
[1726675147544,0.00419641,59579.0,59576.0,0.16785]
[1726675147750,0.02188237,59579.0,59576.0,0.16785]
[1726675147981,0.03542676,59578.0,59576.0,0.16785]
[1726675148267,0.20327676,59577.0,59572.0,0.335723]
[1726675148484,0.167841,59580.0,59576.0,0.167852]
[1726675148696,0.039579,59579.0,59576.0,0.167852]
[1726675148913,0.03538259,59578.0,59576.0,0.167852]
[1726675149128,0.12618259,59577.0,59576.0,0.167852]
[1726675149784,0.1085114,59577.0,59576.0,0.167852]
[1726675149995,0.13392302,59577.0,59576.0,0.503557]
[1726675150238,0.13392302,59577.0,59576.0,0.504557]
[1726675150933,0.13392302,59577.0,59576.0,0.503557]
[1726675151387,0.13392302,59577.0,59576.0,0.167852]
[1726675151632,0.14792302,59577.0,59576.0,0.001]
[1726675151859,0.90032352,59577.0,59576.0,0.001]
[1726675152101,0.90032352,59577.0,59572.0,0.00164]
[1726675152102,0.602083,59573.0,59572.0,0.00164]
[1726675152322,0.63745983,59573.0,59572.0,0.00164]
[1726675152543,1.4719575,59573.0,59572.0,0.00164]
[1726675152777,1.14398169,59573.0,59572.0,0.00164]
[1726675153026,1.10860486,59573.0,59572.0,0.00164]
[1726675153311,1.14377707,59573.0,59572.0,0.00164]
[1726675153583,1.47949907,59573.0,59572.0,0.00164]
[1726675153856,0.839417,59565.0,59564.0,0.00164]
[1726675154133,1.20840398,59565.0,59564.0,0.00164]
[1726675154394,1.71485326,59565.0,59564.0,0.00164]
[1726675154906,0.503743,59554.0,59553.0,0.00164]
[1726675155172,1.21109788,59554.0,59553.0,0.00164]
[1726675155390,1.21861998,59554.0,59553.0,0.00164]
[1726675156273,0.88279098,59554.0,59553.0,0.00164]
[1726675156491,0.88258006,59554.0,59553.0,0.00164]
[1726675156730,1.53688974,59554.0,59553.0,0.00164]
[1726675156953,0.83963,59550.0,59546.0,0.00164]
[1726675157181,0.839672,59547.0,59546.0,0.00164]
[1726675157405,1.02007318,59547.0,59546.0,0.00164]
[1726675157627,1.03768615,59547.0,59546.0,0.00164]
[1726675158572,0.70181715,59547.0,59546.0,0.00164]
[1726675159471,1.03768615,59547.0,59546.0,0.00164]
[1726675159682,1.05168615,59547.0,59546.0,0.00164]
[1726675159926,1.03768615,59547.0,59546.0,0.00164]
[1726675160147,0.839785,59539.0,59538.0,0.00164]
[1726675160376,1.03779915,59539.0,59538.0,0.00164]
[1726675161044,1.37371315,59539.0,59538.0,0.00164]
[1726675161277,1.03779915,59539.0,59538.0,0.00164]
[1726675161498,0.70188515,59539.0,59538.0,0.00164]
[1726675161721,0.71088769,59539.0,59538.0,0.00164]
[1726675162180,0.01761297,59539.0,59538.0,0.169599]
[1726675162421,0.167944,59544.0,59539.0,0.167955]
[1726675162731,0.01792195,59545.0,59540.0,0.335906]
[1726675162732,0.16305367,59545.0,59540.0,0.335906]
[1726675163197,0.0792,59546.0,59538.0,0.505518]
[1726675163198,0.014,59539.0,59538.0,0.505518]
[1726675163406,0.247138,59546.0,59540.0,0.167952]
[1726675163407,0.16794,59545.0,59540.0,0.167952]
[1726675163625,0.16794,59545.0,59538.0,0.337559]
[1726675163626,0.335881,59545.0,59538.0,0.00164]
[1726675163844,0.167952,59541.0,59538.0,0.00164]
[1726675164060,0.167954,59540.0,59538.0,0.00164]
[1726675164488,0.335899,59542.0,59538.0,0.00164]
[1726675164717,0.435003,59541.0,59538.0,0.00164]
[1726675164944,0.167957,59539.0,59538.0,0.00164]
[1726675165390,0.267052,59541.0,59538.0,0.00164]
[1726675165839,0.0991,59541.0,59538.0,0.00164]
[1726675166342,0.335858,59549.0,59544.0,0.167943]
[1726675166343,0.013,59545.0,59544.0,0.167943]
[1726675166559,0.0792,59546.0,59541.0,0.3359]
[1726675166821,0.167944,59544.0,59540.0,0.167953]
[1726675167064,0.014,59541.0,59538.0,0.00164]
[1726675167307,0.167943,59544.0,59539.0,0.167954]
[1726675167563,0.0792,59546.0,59542.0,0.167947]
[1726675167774,0.03193236,59545.0,59538.0,0.00164]
[1726675167995,0.167944,59544.0,59540.0,0.167952]
[1726675168238,0.335893,59543.0,59538.0,0.00164]
[1726675168463,0.167944,59544.0,59540.0,0.167952]
[1726675168684,0.167946,59543.0,59539.0,0.167956]
[1726675169380,0.014,59541.0,59539.0,0.167956]
[1726675169838,0.167946,59543.0,59539.0,0.167956]
[1726675170055,0.014,59543.0,59540.0,0.167953]
[1726675170335,0.0792,59546.0,59542.0,0.167948]
[1726675170551,0.0792,59546.0,59541.0,0.167949]
[1726675170552,0.16794,59545.0,59541.0,0.167949]
[1726675170986,0.167943,59544.0,59541.0,0.167949]
[1726675171419,0.167943,59544.0,59540.0,0.167953]
[1726675171634,0.0792,59546.0,59541.0,0.16795]
[1726675171854,0.0792,59546.0,59538.0,0.00164]
[1726675171855,0.03600204,59545.0,59538.0,0.00164]
[1726675172070,0.335897,59542.0,59538.0,0.00164]
[1726675172280,0.01796277,59541.0,59538.0,0.00164]
[1726675172495,0.167954,59540.0,59538.0,0.00164]
[1726675172730,0.18591377,59541.0,59538.0,0.00164]
[1726675172945,0.167951,59541.0,59538.0,0.00164]
[1726675173195,0.014,59545.0,59538.0,0.00164]
[1726675173410,0.17705367,59545.0,59541.0,0.16795]
[1726675173693,0.035829,59544.0,59542.0,0.167948]
[1726675173909,0.167951,59542.0,59538.0,0.00164]
[1726675174113,0.01794664,59541.0,59540.0,0.167952]
[1726675174373,0.01794664,59541.0,59538.0,0.00164]
[1726675174374,0.01794762,59541.0,59538.0,0.169598]
[1726675174599,0.167946,59543.0,59538.0,0.169598]
[1726675174859,0.01795307,59542.0,59538.0,0.169598]
[1726675175116,0.01795307,59541.0,59538.0,0.169598]
[1726675175379,0.335898,59542.0,59538.0,0.00164]
[1726675175607,0.503871,59539.0,59538.0,0.00164]
[1726675175820,0.167957,59539.0,59538.0,0.00164]
[1726675176508,0.18593051,59539.0,59538.0,0.00164]
[1726675177379,0.19993051,59539.0,59538.0,0.00164]
[1726675178024,0.03197351,59539.0,59538.0,0.00164]
[1726675179218,0.0319601,59539.0,59538.0,0.00164]
[1726675179444,0.04983893,59539.0,59538.0,0.00164]
[1726675180328,0.55370993,59539.0,59538.0,0.00164]
[1726675180780,0.21779593,59539.0,59538.0,0.00164]
[1726675181239,0.04983893,59539.0,59538.0,0.00164]
[1726675182470,0.03194513,59539.0,59538.0,0.00164]
[1726675182681,0.04983689,59539.0,59538.0,0.00164]
[1726675182900,0.04983957,59539.0,59538.0,0.505518]
[1726675183115,0.04983955,59539.0,59538.0,0.505518]
[1726675183343,0.04983955,59539.0,59538.0,0.00164]
[1726675184448,0.55371055,59539.0,59538.0,0.00164]
[1726675184664,0.88962455,59539.0,59538.0,0.00164]
[1726675184877,1.05267822,59539.0,59538.0,0.00164]
[1726675186193,1.03477545,59539.0,59538.0,0.00164]
[1726675186410,1.0527721,59539.0,59538.0,0.00164]
[1726675188905,1.0547721,59539.0,59538.0,0.00164]
[1726675189123,1.46328945,59539.0,59538.0,0.00164]
[1726675189343,1.48129071,59539.0,59538.0,0.00164]
[1726675190223,1.14537671,59539.0,59538.0,0.00164]
[1726675190443,1.05277671,59539.0,59538.0,0.00164]
[1726675190688,0.38094871,59539.0,59538.0,0.00164]
[1726675190903,0.71686271,59539.0,59538.0,0.00164]
[1726675192229,0.69886145,59539.0,59538.0,0.00164]
[1726675192442,0.71676573,59539.0,59538.0,0.00164]
[1726675193607,1.05267973,59539.0,59538.0,0.00164]
[1726675193819,0.71676573,59539.0,59538.0,0.00164]
[1726675196270,1.05267973,59539.0,59538.0,0.00164]
[1726675196495,1.05467973,59539.0,59538.0,0.00164]
[1726675196706,1.05267973,59539.0,59538.0,0.00164]
[1726675200187,1.03474295,59539.0,59538.0,0.00164]
[1726675201221,1.03470747,59539.0,59538.0,0.00164]
[1726675201418,1.03470747,59539.0,59526.0,0.38637678]
[1726675201419,0.032,59529.0,59528.0,0.001638]
[1726675201654,0.31076848,59529.0,59528.0,0.001638]
[1726675201897,1.16856229,59529.0,59528.0,0.001638]
[1726675202113,1.17056229,59529.0,59528.0,0.001638]
[1726675202327,1.50545983,59529.0,59528.0,0.001638]
[1726675202543,1.53545983,59529.0,59528.0,0.001638]
[1726675202781,1.19948983,59529.0,59528.0,0.001638]
[1726675203926,1.18199315,59529.0,59528.0,0.001638]
[1726675204172,1.53596728,59529.0,59528.0,0.001638]
[1726675204452,1.85700826,59529.0,59528.0,0.001638]
[1726675204694,1.89381129,59529.0,59528.0,0.001638]
[1726675204973,2.20084455,59529.0,59528.0,0.001638]
[1726675205379,2.15790992,59529.0,59528.0,0.001638]
[1726675206710,2.50787992,59529.0,59528.0,0.001638]
[1726675206932,1.95328277,59525.0,59523.0,0.000819]
[1726675207176,2.2784939,59525.0,59524.0,1e-06]
[1726675207417,1.763398,59516.0,59515.0,0.00164]
[1726675207643,2.45448692,59516.0,59515.0,0.00164]
[1726675208065,2.54988692,59516.0,59515.0,0.00164]
[1726675208483,2.18384292,59516.0,59515.0,0.00164]
[1726675208714,1.62988415,59516.0,59515.0,0.00164]
[1726675208940,0.03607648,59516.0,59515.0,0.00164]
[1726675210110,0.20409848,59516.0,59515.0,0.00164]
[1726675210328,0.36715215,59516.0,59515.0,0.00164]
[1726675210541,1.13924015,59516.0,59515.0,0.00164]
[1726675210785,1.15441383,59516.0,59515.0,0.00164]
[1726675210985,1.47645783,59516.0,59515.0,0.00164]
[1726675211395,1.49045783,59516.0,59515.0,0.00164]
[1726675211778,1.47645783,59516.0,59515.0,0.00164]
[1726675211986,1.13841383,59516.0,59515.0,0.00164]
[1726675212186,1.14041383,59516.0,59515.0,0.00164]
[1726675212387,1.03841383,59516.0,59515.0,0.00164]
[1726675213154,1.37445783,59516.0,59515.0,0.00164]
[1726675213370,1.37645783,59516.0,59515.0,0.00164]
[1726675213729,1.35855242,59516.0,59515.0,0.00164]
[1726675213967,1.37646177,59516.0,59515.0,0.00164]
[1726675214192,1.06477993,59516.0,59515.0,0.00164]
[1726675214414,1.07877993,59516.0,59515.0,0.00164]
[1726675214636,1.05241777,59516.0,59515.0,0.00164]
[1726675214854,1.38846177,59516.0,59515.0,0.00164]
[1726675215774,1.39046177,59516.0,59515.0,0.00164]
[1726675216353,1.51928062,59516.0,59515.0,0.00164]
[1726675217027,1.51944976,59516.0,59515.0,0.00164]
[1726675217240,1.52003444,59516.0,59515.0,0.00164]
[1726675217447,0.57980589,59516.0,59515.0,0.00164]
[1726675217728,0.91584989,59516.0,59515.0,0.00164]
[1726675217938,1.38858368,59516.0,59515.0,0.00164]
[1726675218147,1.39058368,59516.0,59515.0,0.00164]
[1726675218356,1.49058368,59516.0,59515.0,0.00164]
[1726675218764,1.47658368,59516.0,59515.0,0.00164]
[1726675219171,1.49058368,59516.0,59515.0,0.00164]
[1726675219649,1.47658368,59516.0,59515.0,0.00164]
[1726675220067,2.00641154,59516.0,59515.0,0.00164]
[1726675220305,2.01362768,59516.0,59515.0,0.00164]
[1726675220522,2.07550767,59516.0,59515.0,0.00164]
[1726675220730,1.59977867,59516.0,59515.0,0.00164]
[1726675221781,1.58577867,59516.0,59515.0,0.00164]
[1726675222403,1.59977867,59516.0,59515.0,0.00164]
[1726675223713,1.59975776,59516.0,59515.0,0.00164]
[1726675225084,1.38845776,59516.0,59515.0,0.00164]
[1726675226018,1.05241376,59516.0,59515.0,0.00164]
[1726675226234,1.03841376,59516.0,59515.0,0.00164]
[1726675226470,0.88936009,59516.0,59515.0,0.00164]
[1726675226723,0.87536009,59516.0,59515.0,0.00164]
[1726675226951,0.03535309,59516.0,59515.0,0.00164]
[1726675227205,0.03535309,59516.0,59515.0,0.10114]
[1726675227646,0.04935309,59516.0,59515.0,0.10114]
[1726675228089,0.03197016,59516.0,59515.0,0.10114]
[1726675228338,0.014,59516.0,59515.0,0.10114]
[1726675228998,0.01788247,59520.0,59515.0,0.28719367]
[1726675229231,0.00164,59523.0,59519.0,0.15591477]
[1726675229452,0.01788174,59522.0,59520.0,0.0755]
[1726675229669,0.01788174,59521.0,59520.0,0.0755]
[1726675229888,0.00164,59523.0,59520.0,0.1886]
[1726675229889,0.01788174,59522.0,59520.0,0.1886]
[1726675230110,0.00164,59523.0,59521.0,0.023]
[1726675230340,0.00164,59523.0,59522.0,0.840025]
[1726675230615,0.00364,59523.0,59522.0,1.36208867]
[1726675230833,0.01953621,59523.0,59522.0,1.36208867]
[1726675231057,0.00164,59523.0,59522.0,1.36208867]
[1726675231280,0.01954176,59523.0,59522.0,0.840025]
[1726675231715,0.01954176,59523.0,59522.0,1.176035]
[1726675232221,0.00164,59523.0,59522.0,0.840025]
[1726675232918,0.00164,59523.0,59522.0,0.843025]
[1726675233187,0.00164,59523.0,59522.0,1.36508867]
[1726675233636,0.00164,59523.0,59522.0,1.46508867]
[1726675235264,0.00164,59523.0,59522.0,1.80109867]
[1726675235524,0.00164,59523.0,59522.0,1.56078867]
[1726675235752,0.00164,59523.0,59522.0,1.55778867]
[1726675235998,0.00164,59523.0,59522.0,1.92379867]
[1726675236250,0.167947,59543.0,59537.0,0.335925]
[1726675236506,0.035188,59542.0,59539.0,0.167954]
[1726675236743,0.01787423,59541.0,59539.0,0.167956]
[1726675236965,0.035188,59541.0,59536.0,0.335927]
[1726675237200,0.18583023,59540.0,59532.0,0.335951]
[1726675237435,0.00419876,59544.0,59532.0,0.167975]
[1726675237436,0.167965,59536.0,59532.0,0.167975]
[1726675237650,0.167961,59538.0,59534.0,0.16797]
[1726675237878,0.335938,59535.0,59529.0,0.167983]
[1726675238099,0.167974,59533.0,59529.0,0.167983]
[1726675238454,0.01792556,59532.0,59527.0,0.335981]
[1726675238542,0.01292556,59532.0,59529.0,0.167984]
[1726675238761,0.167975,59533.0,59529.0,0.167984]
[1726675239012,0.167971,59534.0,59530.0,0.167982]
[1726675239745,0.014,59533.0,59530.0,0.335964]
[1726675239999,0.014,59533.0,59530.0,0.167982]
[1726675240234,0.014,59533.0,59530.0,0.168982]
[1726675240996,0.014,59533.0,59532.0,0.503929]
[1726675241236,0.014,59533.0,59532.0,0.839882]
[1726675241981,0.19430297,59541.0,59535.0,0.335936]
[1726675242223,0.01725063,59540.0,59537.0,0.167962]
[1726675242451,0.01725063,59539.0,59538.0,0.167959]
[1726675242961,0.01725063,59539.0,59535.0,0.335936]
[1726675243216,0.01725063,59538.0,59537.0,0.167962]
[1726675243456,0.01725063,59538.0,59527.0,0.335979]
[1726675243686,0.01725063,59538.0,59524.0,0.335994]
[1726675243687,0.505878,59538.0,59537.0,0.001]
[1726675243941,0.505878,59538.0,59521.0,0.0937]
[1726675243942,0.0172789,59537.0,59525.0,0.167995]